bitfinex/quotes_BTCUSD_20260126
["timestamp","ask_amount","ask_price","bid_price","bid_amount"]
[1769390017593,0.28090647,87411.0,87394.0,0.23894555]
[1769390017594,0.2237051,87411.0,87394.0,0.23894555]
[1769390017778,0.21385369,87415.0,87395.0,1.16502578]
[1769390017984,0.23514491,87414.0,87396.0,0.02288434]
[1769390018186,0.23514491,87414.0,87396.0,0.26182989]
[1769390018401,0.21385369,87415.0,87397.0,0.02288407]
[1769390018600,0.21385369,87415.0,87397.0,0.02302468]
[1769390018802,0.2237051,87414.0,87397.0,0.02302468]
[1769390019017,0.2237051,87414.0,87397.0,0.26197023]
[1769390019237,0.2237051,87414.0,87397.0,0.23908616]
[1769390019438,0.2237051,87414.0,87398.0,0.26182935]
[1769390019642,0.2237051,87414.0,87398.0,0.23894555]
[1769390019849,0.2237051,87414.0,87399.0,0.02288355]
[1769390020392,0.2237051,87412.0,87399.0,0.02288355]
[1769390020949,0.23514517,87412.0,87399.0,0.02288355]
[1769390021553,0.0114402,87411.0,87399.0,0.02288355]
[1769390021752,0.01144033,87410.0,87399.0,0.02288355]
[1769390021954,0.23514556,87409.0,87399.0,0.02288355]
[1769390022143,0.2237051,87409.0,87397.0,0.00014061]
[1769390022948,0.0114406,87408.0,87397.0,0.00014061]
[1769390023144,0.23514556,87409.0,87397.0,0.00014061]
[1769390023360,0.2237051,87409.0,87397.0,0.00014061]
[1769390023593,0.01144046,87409.0,87397.0,0.00014061]
[1769390023735,0.2237051,87409.0,87397.0,0.00014061]
[1769390024165,0.23514556,87409.0,87397.0,0.00014061]
[1769390024357,0.23514596,87406.0,87397.0,0.00014061]
[1769390024563,0.01144125,87403.0,87397.0,0.00014061]
[1769390024760,0.01144125,87403.0,87386.0,0.23936735]
[1769390024761,0.01158265,87397.0,87386.0,0.23936735]
[1769390024992,0.0114423,87395.0,87386.0,0.0004218]
[1769390025597,0.22356589,87397.0,87386.0,0.0004218]
[1769390025763,0.01144164,87400.0,87386.0,0.0004218]
[1769390025963,0.01144151,87401.0,87386.0,0.0004218]
[1769390026163,0.43160003,87402.0,87386.0,0.0004218]
[1769390026389,0.22356589,87408.0,87388.0,1.16502578]
[1769390026563,0.22370642,87408.0,87391.0,0.23894555]
[1769390026920,0.01158113,87408.0,87393.0,1.16502578]
[1769390027123,0.01158113,87408.0,87386.0,0.0004218]
[1769390027124,0.01144086,87406.0,87395.0,0.23894555]
[1769390027267,0.01144073,87407.0,87395.0,0.23894555]
[1769390027599,0.01144086,87406.0,87395.0,0.23894555]
[1769390027826,0.01144073,87407.0,87395.0,0.23894555]
[1769390028028,0.01158113,87408.0,87395.0,0.2384956]
[1769390028231,0.01144073,87407.0,87395.0,0.23354343]
[1769390028357,0.01144073,87407.0,87395.0,0.22858639]
[1769390028555,0.01144073,87407.0,87395.0,0.22497818]
[1769390028812,0.01144073,87407.0,87395.0,0.22001267]
[1769390028976,0.01144073,87407.0,87395.0,0.21594632]
[1769390029192,0.01144086,87406.0,87395.0,0.23410317]
[1769390029392,0.00014053,87408.0,87395.0,0.20961438]
[1769390029577,0.01144073,87407.0,87395.0,0.20961438]
[1769390030010,0.01144086,87406.0,87389.0,1.16502578]
[1769390030311,0.23500675,87406.0,87390.0,0.23894555]
[1769390030516,0.01144099,87405.0,87390.0,0.23894555]
[1769390030718,0.01144125,87403.0,87386.0,0.0004218]
[1769390030924,0.01144125,87403.0,87375.0,0.01144492]
[1769390030925,0.01144282,87391.0,87374.0,0.23894555]
[1769390031125,0.0004218,87386.0,87374.0,0.23894555]
[1769390031355,0.0004218,87386.0,87375.0,0.02288984]
[1769390031535,0.23459152,87388.0,87375.0,0.02288984]
[1769390031940,0.01144361,87385.0,87374.0,0.23894555]
[1769390032150,0.01144348,87386.0,87374.0,0.23894555]
[1769390032455,0.22314831,87388.0,87375.0,0.02288984]
[1769390032620,0.23459152,87388.0,87375.0,0.02288984]
[1769390033013,0.22314831,87388.0,87375.0,0.02288984]
[1769390033352,0.23459152,87388.0,87375.0,0.02288984]
[1769390033514,0.23459165,87387.0,87375.0,0.02288984]
[1769390033884,0.01144308,87389.0,87370.0,0.02289115]
[1769390033885,0.05721798,87386.0,87370.0,0.02289115]
[1769390034068,0.00743372,87384.0,87370.0,0.02289115]
[1769390034642,0.01144387,87383.0,87370.0,0.02289115]
[1769390034852,0.21400972,87387.0,87361.0,1.16502578]
[1769390034853,0.01144465,87377.0,87362.0,0.23894555]
[1769390035051,0.01144518,87373.0,87362.0,0.23894555]
[1769390035234,0.01144544,87371.0,87362.0,0.23894555]
[1769390035435,0.01144531,87372.0,87357.0,0.41470555]
[1769390035673,0.01144518,87373.0,87357.0,0.41470555]
[1769390035848,0.01887877,87374.0,87357.0,0.41470555]
[1769390036034,0.01887877,87374.0,87365.0,0.00082684]
[1769390036246,0.00743372,87374.0,87365.0,0.00082684]
[1769390036924,0.01144439,87379.0,87365.0,0.00082684]
[1769390037359,0.01144413,87381.0,87365.0,0.00082684]
[1769390037487,0.21890128,87387.0,87367.0,1.16502578]
[1769390037690,0.01144361,87385.0,87370.0,0.23894555]
[1769390038004,0.01144387,87383.0,87371.0,0.24535692]
[1769390038203,0.011444,87382.0,87371.0,0.23520441]
[1769390038544,0.01144518,87373.0,87365.0,0.00082684]
[1769390038764,0.01887798,87380.0,87365.0,0.00082684]
[1769390039220,0.01144479,87376.0,87365.0,0.00082684]
[1769390039424,0.01144492,87375.0,87365.0,0.00082684]
[1769390039653,0.01144465,87377.0,87365.0,0.00082684]
[1769390039972,0.01144518,87373.0,87365.0,0.00082684]
[1769390040175,0.01144518,87373.0,87361.0,0.23894555]
[1769390040176,0.01144557,87370.0,87361.0,0.23894555]
[1769390040417,0.00046836,87370.0,87361.0,0.23894555]
[1769390040652,0.00046836,87370.0,87362.0,0.01969042]
[1769390040866,0.01144623,87365.0,87362.0,0.01969042]
[1769390041075,0.01144636,87364.0,87351.0,0.1758]
[1769390041283,0.01144623,87365.0,87352.0,0.01025397]
[1769390041625,0.01144649,87363.0,87352.0,0.01025397]
[1769390042163,0.01144675,87361.0,87351.0,0.01025396]
[1769390042559,0.01144675,87361.0,87349.0,0.41474555]
[1769390042560,0.01144754,87355.0,87349.0,0.1758]
[1769390042762,0.06868475,87356.0,87349.0,0.1758]
[1769390042763,0.01144741,87356.0,87349.0,0.1758]
[1769390042922,0.21420131,87363.0,87350.0,0.00912304]
[1769390043131,0.01144596,87367.0,87352.0,0.24060759]
[1769390043322,0.01191393,87370.0,87355.0,1.08945034]
[1769390043514,0.01144583,87368.0,87356.0,0.2508744]
[1769390043723,0.00046836,87370.0,87356.0,0.24060759]
[1769390043939,0.00046836,87370.0,87352.0,1.08945034]
[1769390044150,0.0114457,87369.0,87355.0,0.24060759]
[1769390044350,0.01144596,87367.0,87356.0,0.24060759]
[1769390044531,0.01144623,87365.0,87356.0,0.24060759]
[1769390044746,0.01144596,87367.0,87356.0,0.24060759]
[1769390044953,0.0114461,87366.0,87356.0,0.24060759]
[1769390045165,0.01191393,87370.0,87356.0,0.24060759]
[1769390045403,0.01144583,87368.0,87356.0,0.24060759]
[1769390045740,0.0114457,87369.0,87356.0,0.24060759]
[1769390045944,0.01144583,87368.0,87356.0,0.24060759]
[1769390046144,0.0114461,87366.0,87356.0,0.24060759]
[1769390046345,0.0114457,87369.0,87356.0,0.24060759]
[1769390046597,0.01191393,87370.0,87356.0,0.24060759]
[1769390046798,0.0114457,87369.0,87356.0,0.24060759]
[1769390047206,0.01144583,87368.0,87356.0,0.24060759]
[1769390047460,0.01144859,87347.0,87344.0,0.0458]
[1769390047649,0.01144898,87344.0,87332.0,0.24060759]
[1769390047859,0.06869389,87344.0,87343.0,0.1758]
[1769390047977,0.0114495,87340.0,87323.0,1.08945034]
[1769390048182,0.23536465,87346.0,87325.0,1.33005793]
[1769390048391,0.23536465,87344.0,87326.0,0.0116986]
[1769390048599,0.01144911,87343.0,87326.0,0.0116986]
[1769390048796,0.23536465,87344.0,87327.0,1.08945034]
[1769390049002,0.01144924,87342.0,87328.0,0.01169833]
[1769390049238,0.01144911,87343.0,87328.0,0.01183904]
[1769390049419,0.01144963,87339.0,87329.0,0.2216]
[1769390049619,0.01144963,87339.0,87328.0,0.00033121]
[1769390049620,0.01145029,87334.0,87328.0,0.00033121]
[1769390050016,0.42910731,87350.0,87300.0,1.08945034]
[1769390050017,0.04123688,87338.0,87300.0,1.08945034]
[1769390050235,0.01145357,87309.0,87300.0,0.00014061]
[1769390050435,0.01145396,87306.0,87300.0,0.00014061]
[1769390051083,0.23536465,87312.0,87300.0,0.00014061]
[1769390051303,0.05726866,87308.0,87306.0,0.01]
[1769390051515,0.01145357,87309.0,87306.0,0.01]
[1769390051720,0.01145291,87314.0,87300.0,0.2407482]
[1769390051721,0.01145291,87314.0,87301.0,1.08945034]
[1769390051919,0.01145357,87309.0,87301.0,1.33005793]
[1769390052234,0.01145331,87311.0,87293.0,0.0004]
[1769390052235,0.01145527,87296.0,87293.0,0.0004]
[1769390052383,0.05727735,87295.0,87293.0,0.00054085]
[1769390052586,0.0114558,87292.0,87283.0,1.30096328]
[1769390052808,0.06873275,87295.0,87283.0,1.30096328]
[1769390052964,0.01145475,87300.0,87295.0,0.01]
[1769390053173,0.01145475,87300.0,87286.0,1.08945034]
[1769390053174,0.01145488,87299.0,87287.0,0.00234639]
[1769390053376,0.01145475,87300.0,87287.0,1.09179673]
[1769390053573,0.01145422,87304.0,87288.0,0.24060759]
[1769390053808,0.01145422,87304.0,87290.0,0.24060759]
[1769390054057,0.01145422,87304.0,87279.0,0.17584]
[1769390054058,0.01145422,87304.0,87291.0,1.0905956]
[1769390054209,0.01145462,87301.0,87291.0,0.24060759]
[1769390054438,0.01145462,87301.0,87286.0,1.08945034]
[1769390054439,0.01145475,87300.0,87286.0,1.08945034]
[1769390054658,0.01145488,87299.0,87286.0,1.33005793]
[1769390054844,0.01145659,87286.0,87277.0,0.0004]
[1769390055100,0.01145698,87283.0,87277.0,0.0004]
[1769390055273,0.01145645,87287.0,87277.0,0.0004]
[1769390055698,0.01145659,87286.0,87277.0,0.0004]
[1769390056156,0.01145645,87287.0,87277.0,0.0004]
[1769390056399,0.01145672,87285.0,87277.0,0.0004]
[1769390056621,0.01145645,87287.0,87265.0,1e-08]
[1769390056622,0.01145895,87268.0,87265.0,1e-08]
[1769390056811,0.01145895,87268.0,87249.0,0.23022378]
[1769390056812,0.01146052,87256.0,87252.0,0.17588]
[1769390057035,0.01146013,87259.0,87252.0,0.00046958]
[1769390057472,0.01146066,87255.0,87252.0,0.00046958]
[1769390057903,0.05730396,87254.0,87252.0,0.00046958]
[1769390058073,0.06876711,87251.0,87248.0,0.0461645]
[1769390058279,0.00046813,87251.0,87248.0,0.04564332]
[1769390058505,0.00046813,87251.0,87248.0,0.04199427]
[1769390058782,0.01146026,87258.0,87252.0,0.00744628]
[1769390058985,0.01146039,87257.0,87252.0,0.00744628]
[1769390059231,0.01146013,87259.0,87252.0,0.00744628]
[1769390059377,0.3426499,87384.0,87252.0,0.00744628]
[1769390059378,0.01145882,87269.0,87253.0,1.13932902]
[1769390059578,0.01145842,87272.0,87255.0,1.13932902]
[1769390059780,0.01145895,87268.0,87257.0,1.13932902]
[1769390060004,0.01145908,87267.0,87258.0,0.0009963]
[1769390060209,0.00014038,87268.0,87258.0,0.17592]
[1769390060537,0.2170031,87269.0,87258.0,0.17040502]
[1769390060736,0.01145947,87264.0,87258.0,0.1705454]
[1769390060949,0.01145961,87263.0,87259.0,0.04584]
[1769390061110,0.01145974,87262.0,87259.0,0.04584]
[1769390061508,0.01145961,87263.0,87259.0,0.04584]
[1769390061924,0.01145947,87264.0,87259.0,0.04584]
[1769390062122,0.01145816,87274.0,87259.0,0.04584]
[1769390062331,0.01145856,87271.0,87260.0,0.02291974]
[1769390062557,0.02178263,87299.0,87260.0,0.02291974]
[1769390062761,0.01145685,87284.0,87272.0,1.13932902]
[1769390062911,0.01145619,87289.0,87273.0,0.00053916]
[1769390063120,0.01145619,87289.0,87273.0,1.13986818]
[1769390063329,0.01145711,87282.0,87273.0,1.13932902]
[1769390063540,0.01145698,87283.0,87274.0,0.00055081]
[1769390063791,0.01145711,87282.0,87274.0,0.00055081]
[1769390063959,0.01145724,87281.0,87274.0,0.00055081]
[1769390064163,0.0114575,87279.0,87273.0,1.13932902]
[1769390064862,0.0114575,87279.0,87265.0,1.13932902]
[1769390065074,0.01145737,87280.0,87265.0,1.13932902]
[1769390065277,0.01145764,87278.0,87265.0,1.13932902]
[1769390065502,0.01145711,87282.0,87266.0,0.2218]
[1769390065700,0.01145711,87282.0,87266.0,1.36112902]
[1769390065899,0.01145724,87281.0,87268.0,1.13932902]
[1769390066102,0.01145711,87282.0,87269.0,0.04584]
[1769390066682,0.01469583,87284.0,87269.0,0.04584]
[1769390067024,0.01469583,87284.0,87270.0,1.3695528]
[1769390067025,0.02615268,87284.0,87270.0,1.3695528]
[1769390067438,0.01469583,87284.0,87270.0,1.3695528]
[1769390067661,0.01469583,87284.0,87271.0,1.14047486]
[1769390067864,0.01469583,87284.0,87271.0,1.13932902]
[1769390068069,0.01145711,87282.0,87271.0,1.13932902]
[1769390068264,0.01145698,87283.0,87272.0,0.00832365]
[1769390068467,0.01145685,87284.0,87272.0,1.14765267]
[1769390068749,0.01145645,87287.0,87272.0,1.3695528]
[1769390068984,0.01145645,87287.0,87269.0,0.04584]
[1769390068985,0.01145606,87290.0,87275.0,0.23022378]
[1769390069233,0.01145659,87286.0,87277.0,0.23022378]
[1769390069433,0.01145659,87286.0,87278.0,1.13932902]
[1769390069607,0.01145672,87285.0,87278.0,1.36112902]
[1769390069839,0.01145685,87284.0,87278.0,1.36112902]
[1769390070023,0.01145698,87283.0,87278.0,1.36112902]
[1769390070313,0.01145685,87284.0,87278.0,1.36112902]
[1769390070892,0.01145672,87285.0,87278.0,1.36112902]
[1769390071113,0.01145645,87287.0,87278.0,1.36112902]
[1769390071313,0.0114558,87292.0,87278.0,1.36112902]
[1769390071631,0.01145554,87294.0,87281.0,0.23022378]
[1769390071846,0.01145567,87293.0,87284.0,1.13932902]
[1769390071998,0.01145606,87290.0,87278.0,0.2218]
[1769390072202,0.01145672,87285.0,87279.0,0.22184]
[1769390072541,0.01145672,87285.0,87280.0,0.176]
[1769390072772,0.01145698,87283.0,87280.0,0.176]
[1769390073123,0.1450069,87282.0,87280.0,0.176]
[1769390074080,0.01145698,87283.0,87280.0,0.176]
[1769390074298,0.01469583,87287.0,87280.0,0.176]
[1769390074446,0.01145698,87283.0,87280.0,0.176]
[1769390074938,0.01145698,87283.0,87270.0,1.37641232]
[1769390075140,0.01145698,87283.0,87259.0,0.01146013]
[1769390075141,0.01145869,87270.0,87260.0,0.21198061]
[1769390075368,0.01145908,87267.0,87258.0,0.00331172]
[1769390075524,0.01145908,87267.0,87261.0,0.176]
[1769390075525,0.01145934,87265.0,87261.0,0.176]
[1769390075726,0.01145921,87266.0,87261.0,0.176]
[1769390075978,0.01145908,87267.0,87261.0,0.176]
[1769390076180,0.01145921,87266.0,87261.0,0.176]
[1769390076515,0.01145842,87272.0,87261.0,0.176]
[1769390076644,0.01145856,87271.0,87258.0,0.01212545]
[1769390076865,0.01145856,87271.0,87259.0,0.176]
[1769390077090,0.01145856,87271.0,87260.0,0.00881316]
[1769390077511,0.01145882,87269.0,87260.0,0.00881316]
[1769390078068,0.01145908,87267.0,87260.0,0.00881316]
[1769390078275,0.01145974,87262.0,87261.0,0.176]
[1769390078475,0.01145961,87263.0,87261.0,0.176]
[1769390079078,0.21474967,87269.0,87261.0,0.176]
[1769390079267,0.01145869,87270.0,87261.0,0.176]
[1769390079469,0.01881163,87272.0,87258.0,0.02358496]
[1769390079670,0.01145869,87270.0,87259.0,0.176]
[1769390079920,0.01145842,87272.0,87259.0,0.176]
[1769390080062,0.01145856,87271.0,87259.0,0.176]
[1769390080268,0.01145882,87269.0,87259.0,0.176]
[1769390080492,0.01145869,87270.0,87259.0,0.176]
[1769390080682,0.01145895,87268.0,87259.0,0.176]
[1769390081319,0.01145856,87271.0,87259.0,0.176]
[1769390081541,0.01145869,87270.0,87259.0,0.176]
[1769390081744,0.01145882,87269.0,87259.0,0.176]
[1769390081950,0.01145869,87270.0,87259.0,0.176]
[1769390082186,0.01145882,87269.0,87259.0,0.176]
[1769390082595,0.07198762,87273.0,87259.0,0.17182644]
[1769390082718,0.01145856,87271.0,87259.0,0.16817405]
[1769390083069,0.01145869,87270.0,87259.0,1.33208396]
[1769390083400,0.0041,87269.0,87259.0,1.33208396]
[1769390083608,0.0041,87269.0,87260.0,1.16443171]
[1769390083811,0.01145777,87277.0,87261.0,1.18468946]
[1769390083984,0.01145816,87274.0,87263.0,1.16443171]
[1769390084424,0.01145816,87274.0,87258.0,0.00331172]
[1769390084425,0.01145987,87261.0,87258.0,1e-08]
[1769390084622,0.05730027,87260.0,87258.0,1e-08]
[1769390084820,0.01145987,87261.0,87258.0,1e-08]
[1769390085582,0.05730005,87260.0,87258.0,1e-08]
[1769390085790,0.06875981,87261.0,87258.0,1e-08]
[1769390086536,0.01145947,87264.0,87258.0,1e-08]
[1769390086832,0.06875933,87261.0,87258.0,1e-08]
[1769390087026,0.01145987,87261.0,87258.0,1e-08]
[1769390087526,0.06875923,87261.0,87258.0,1e-08]
[1769390088278,0.05730067,87259.0,87258.0,1e-08]
[1769390089624,0.28346255,87259.0,87258.0,1e-08]
[1769390090508,0.05730067,87259.0,87258.0,1e-08]
[1769390090723,0.01469583,87260.0,87259.0,0.01]
[1769390090938,0.0261557,87261.0,87258.0,1e-08]
[1769390091154,0.05730067,87259.0,87258.0,1e-08]
[1769390091370,0.0261557,87261.0,87258.0,1e-08]
[1769390091586,0.28346255,87259.0,87258.0,1e-08]
[1769390092030,0.05730067,87259.0,87258.0,1e-08]
[1769390092227,0.0261557,87261.0,87258.0,1e-08]
[1769390092374,0.0261557,87261.0,87258.0,1.16443172]
[1769390092580,0.04123688,87273.0,87250.0,0.21198061]
[1769390092783,0.05729748,87264.0,87254.0,0.21198061]
[1769390093000,0.05729748,87264.0,87255.0,1.37641232]
[1769390093221,0.01146,87260.0,87255.0,1.16042928]
[1769390093381,0.01146,87260.0,87255.0,1.15477335]
[1769390093754,0.01146,87260.0,87255.0,1.1457229]
[1769390093963,0.01146013,87259.0,87255.0,1.14006578]
[1769390094100,0.01146,87260.0,87255.0,1.13836855]
[1769390094324,0.01146013,87259.0,87252.0,0.21198061]
[1769390094502,0.01146039,87257.0,87252.0,1.37641232]
[1769390094703,0.01146,87260.0,87252.0,1.37641232]
[1769390094892,0.01145974,87262.0,87252.0,1.37641232]
[1769390095608,0.01146,87260.0,87252.0,1.37641232]
[1769390095808,0.01146026,87258.0,87252.0,1.37641232]
[1769390096036,0.01146052,87256.0,87252.0,1.37641232]
[1769390096233,0.01146066,87255.0,87252.0,1.37641232]
[1769390096450,0.01146105,87252.0,87246.0,0.04584]
[1769390096612,0.01146079,87254.0,87247.0,0.17604]
[1769390096834,0.06573634,87261.0,87247.0,0.17604]
[1769390097014,0.025,87907.0,87251.0,1.16443171]
[1769390097015,0.00014082,87273.0,87251.0,1.16443171]
[1769390097217,0.00014082,87273.0,87253.0,0.21198061]
[1769390097218,0.01145882,87269.0,87253.0,0.21198061]
[1769390097419,0.01145869,87270.0,87255.0,0.21198061]
[1769390097631,0.00014082,87273.0,87257.0,0.21198061]
[1769390097816,0.01159911,87273.0,87258.0,1.16443171]
[1769390098022,0.01145856,87271.0,87258.0,1.16443171]
[1769390098220,0.01145882,87269.0,87258.0,1.16443171]
[1769390098624,0.01145869,87270.0,87258.0,1.16443171]
[1769390098827,0.01145856,87271.0,87258.0,1.16443171]
[1769390099046,0.01145882,87269.0,87258.0,1.16443171]
[1769390099595,0.01145895,87268.0,87258.0,1.16443171]
[1769390099801,0.01145921,87266.0,87258.0,1.16443171]
[1769390100011,0.01145908,87267.0,87257.0,0.21198061]
[1769390100216,0.01145856,87271.0,87258.0,1.16443171]
[1769390100424,0.00014082,87273.0,87258.0,1.16443171]
[1769390100822,0.00014082,87273.0,87259.0,0.17604]
[1769390101168,0.01159911,87273.0,87259.0,1.34047171]
[1769390101567,0.00014082,87273.0,87260.0,0.21198061]
[1769390101811,0.00014082,87273.0,87260.0,1.37641232]
[1769390102185,0.00014082,87273.0,87260.0,0.21198061]
[1769390102585,0.00014082,87273.0,87260.0,1.37641232]
[1769390102997,0.00014082,87273.0,87260.0,0.21198061]
[1769390103196,0.01145842,87272.0,87260.0,0.23490061]
[1769390103402,0.00014082,87273.0,87261.0,1.1432489]
[1769390104337,0.11447875,87272.0,87261.0,1.1432489]
[1769390104497,0.00014082,87273.0,87261.0,1.1432489]
[1769390104698,0.0687425,87283.0,87260.0,0.21198061]
[1769390104699,0.01145632,87288.0,87263.0,0.24731665]
[1769390104924,0.05727841,87293.0,87263.0,0.24731665]
[1769390104925,0.09157532,87299.0,87279.0,1.1432489]
[1769390105098,0.01145383,87307.0,87283.0,0.01145698]
[1769390105438,0.01145291,87314.0,87291.0,0.19001899]
[1769390105620,0.01145383,87307.0,87294.0,1.1432489]
[1769390105945,0.01145475,87300.0,87275.0,0.01145803]
[1769390106097,0.0114554,87295.0,87279.0,1.1432489]
[1769390106299,0.0114554,87295.0,87267.0,0.01145908]
[1769390106300,0.04549061,87295.0,87262.0,0.19001899]
[1769390106521,0.0114575,87279.0,87263.0,0.22188]
[1769390106730,0.01145672,87285.0,87264.0,1.1432489]
[1769390106957,0.01145672,87285.0,87266.0,1.1432489]
[1769390107117,0.01145711,87282.0,87269.0,0.19001899]
[1769390107520,0.0114575,87279.0,87269.0,0.19001899]
[1769390107857,0.0114575,87279.0,87262.0,0.00014082]
[1769390107858,0.01145842,87272.0,87262.0,0.00014082]
[1769390108058,0.17028258,87272.0,87262.0,0.00014082]
[1769390108400,0.01145882,87269.0,87262.0,0.00014082]
[1769390108609,0.05269544,87271.0,87262.0,0.00014082]
[1769390109098,0.181741,87272.0,87262.0,0.00014082]
[1769390109215,0.36326502,87272.0,87262.0,0.00014082]
[1769390109443,0.19298244,87271.0,87262.0,0.00014082]
[1769390109651,0.17028258,87270.0,87262.0,0.00014082]
[1769390109882,0.01145842,87272.0,87262.0,0.00014082]
[1769390110082,0.23421932,87273.0,87262.0,0.00014082]
[1769390110310,0.04123688,87272.0,87262.0,0.00014082]
[1769390110956,0.20444073,87273.0,87262.0,0.00014082]
[1769390111293,0.01145829,87273.0,87262.0,0.00014082]
[1769390111508,0.01145777,87277.0,87262.0,0.19015981]
[1769390111719,0.01145777,87277.0,87252.0,0.01146105]
[1769390111720,0.01145698,87283.0,87264.0,0.19001899]
[1769390111889,0.00014082,87283.0,87277.0,0.006564]
[1769390112093,0.00014082,87283.0,87269.0,1.1432489]
[1769390112278,0.00014082,87283.0,87272.0,0.19001899]
[1769390112475,0.00014082,87283.0,87264.0,0.01145947]
[1769390112476,0.00014082,87283.0,87273.0,0.19001899]
[1769390112698,0.05269294,87290.0,87276.0,0.19001899]
[1769390112908,0.01145632,87288.0,87276.0,0.19001899]
[1769390113083,0.01145672,87285.0,87276.0,0.19001899]
[1769390113282,0.05728142,87289.0,87276.0,0.19001899]
[1769390113283,0.01145685,87284.0,87276.0,0.19001899]
[1769390113984,0.0526932,87288.0,87276.0,0.19001899]
[1769390114247,0.01145672,87285.0,87276.0,0.19001899]
[1769390114383,0.04123688,87289.0,87276.0,0.19001899]
[1769390114616,0.0526932,87288.0,87276.0,0.19001899]
[1769390114823,0.01145672,87285.0,87276.0,0.19001899]
[1769390115016,0.0114558,87292.0,87276.0,0.19001899]
[1769390115200,0.01145606,87290.0,87276.0,0.19001899]
[1769390115402,0.01145606,87290.0,87269.0,0.17604]
[1769390115403,0.0114558,87292.0,87277.0,1.1432489]
[1769390115616,0.01145619,87289.0,87277.0,0.19015981]
[1769390115933,0.01145554,87294.0,87278.0,1.1432489]
[1769390116134,0.01145514,87297.0,87281.0,0.17971523]
[1769390116360,0.01145475,87300.0,87284.0,1.09118577]
[1769390116565,0.06872734,87302.0,87286.0,1.09118577]
[1769390116768,0.01145567,87293.0,87278.0,1.09118577]
[1769390116979,0.01145593,87291.0,87279.0,0.17971523]
[1769390117277,0.0114558,87292.0,87280.0,1.09118577]
[1769390117605,0.01145593,87291.0,87281.0,0.17971523]
[1769390117812,0.0114558,87292.0,87281.0,0.17971523]
[1769390118015,0.01145567,87293.0,87282.0,0.17971523]
[1769390118165,0.01145554,87294.0,87282.0,0.17971523]
[1769390118486,0.0114554,87295.0,87282.0,0.17971523]
[1769390118703,0.1814657,87301.0,87282.0,0.17971523]
[1769390118852,0.11435539,87299.0,87285.0,1.09118577]
[1769390119059,0.1258104,87298.0,87287.0,1.08861565]
[1769390119250,0.11435539,87297.0,87288.0,0.17328852]
[1769390119526,0.01145501,87298.0,87288.0,0.16621577]
[1769390119701,0.01145501,87298.0,87288.0,0.16299951]
[1769390119702,0.11434587,87297.0,87288.0,0.16299951]
[1769390119846,0.01145527,87296.0,87288.0,0.15656438]
[1769390120055,0.01145527,87296.0,87288.0,0.15270158]
[1769390120905,0.01145514,87297.0,87283.0,0.17971523]
[1769390121115,0.01145475,87300.0,87284.0,1.09118577]
[1769390121322,0.11434049,87299.0,87285.0,0.17971523]
[1769390121522,0.01145475,87300.0,87277.0,0.01159859]
[1769390121523,0.11434049,87298.0,87287.0,0.17971523]
[1769390121720,0.01145527,87296.0,87287.0,0.17971523]
[1769390121921,0.01145527,87296.0,87277.0,0.00014082]
[1769390121922,0.01145593,87291.0,87278.0,0.17971523]
[1769390122219,0.01145567,87293.0,87279.0,0.17971523]
[1769390122340,0.01145554,87294.0,87280.0,0.17971523]
[1769390122545,0.01145514,87297.0,87281.0,1.270901]
[1769390122746,0.18671407,87299.0,87282.0,0.17971523]
[1769390122946,0.22907991,87306.0,87285.0,1.09118577]
[1769390122947,0.01145409,87305.0,87285.0,1.09118577]
[1769390123131,0.11433076,87304.0,87280.0,0.43031577]
[1769390123330,0.0002478,87312.0,87291.0,1.09118577]
[1769390123686,0.11431328,87311.0,87293.0,1.10264144]
[1769390123910,0.11431328,87310.0,87297.0,1.09118577]
[1769390124043,0.0002478,87312.0,87300.0,0.17971523]
[1769390124242,0.11430595,87311.0,87301.0,0.17971523]
[1769390124431,0.11430595,87310.0,87301.0,0.17907096]
[1769390124629,0.01145331,87311.0,87301.0,0.17907096]
[1769390124630,0.0002478,87312.0,87301.0,0.17907096]
[1769390124833,0.11428451,87311.0,87301.0,0.17907096]
[1769390125034,0.01170097,87312.0,87301.0,0.17907096]
[1769390125339,0.01145344,87310.0,87301.0,0.17907096]
[1769390125572,0.003436,87301.0,87289.0,0.176]
[1769390125842,0.01145475,87300.0,87289.0,0.176]
[1769390126045,0.01145475,87300.0,87282.0,1.09118577]
[1769390126046,0.01145514,87297.0,87282.0,1.09118577]
[1769390126189,0.18926391,87299.0,87282.0,1.09118577]
[1769390126596,0.01145213,87320.0,87295.0,0.0114554]
[1769390126795,0.11427972,87311.0,87302.0,0.17971523]
[1769390127000,0.01145199,87321.0,87303.0,0.17971523]
[1769390127175,0.11428028,87311.0,87303.0,1.270901]
[1769390127384,0.01145252,87317.0,87303.0,0.17971523]
[1769390127578,0.11426786,87311.0,87303.0,0.17971523]
[1769390127880,0.06870843,87326.0,87305.0,1.09118577]
[1769390128273,0.12571745,87325.0,87310.0,0.17971523]
[1769390128449,0.01145147,87325.0,87312.0,0.17971523]
[1769390128667,0.01145213,87320.0,87304.0,0.04584]
[1769390128879,0.01145226,87319.0,87304.0,0.04584]
[1769390129088,0.01145226,87319.0,87303.0,0.17971523]
[1769390129089,0.003436,87304.0,87303.0,0.17971523]
[1769390129267,0.01145304,87313.0,87299.0,0.176]
[1769390129466,0.06871606,87316.0,87299.0,0.176]
[1769390129467,0.01145265,87316.0,87299.0,0.176]
[1769390129723,0.01145317,87312.0,87299.0,0.176]
[1769390129952,0.01145278,87315.0,87299.0,0.176]
[1769390130123,0.01145252,87317.0,87299.0,0.176]
[1769390130304,0.01145081,87330.0,87302.0,0.17971523]
[1769390130509,0.05725474,87329.0,87305.0,1.09118577]
[1769390130707,0.01145016,87335.0,87312.0,1.09118577]
[1769390130907,0.0004102,87336.0,87317.0,0.17971523]
[1769390131108,0.0004102,87336.0,87306.0,0.22907913]
[1769390131109,0.0004102,87336.0,87320.0,1.09118577]
[1769390131427,0.0004102,87336.0,87322.0,0.17971523]
[1769390131605,0.0004102,87336.0,87323.0,0.17971523]
[1769390131794,0.0004102,87336.0,87324.0,1.270901]
[1769390132049,0.0004102,87336.0,87325.0,0.17971523]
[1769390132273,0.0004102,87336.0,87326.0,0.17971523]
[1769390132482,0.28554159,87389.0,87353.0,0.08243693]
[1769390132680,0.17094378,87390.0,87362.0,0.17971523]
[1769390132681,0.05721617,87388.0,87362.0,0.17971523]
[1769390132864,0.11393437,87387.0,87362.0,0.17971523]
[1769390133066,0.11393437,87386.0,87363.0,0.01144649]
[1769390133242,0.11393437,87385.0,87364.0,0.2218]
[1769390133443,0.15749196,87390.0,87369.0,0.0114457]
[1769390133780,0.08243693,87387.0,87362.0,0.17971523]
[1769390133982,0.08243693,87387.0,87363.0,0.2218]
[1769390133983,0.003436,87369.0,87363.0,0.2218]
[1769390134130,0.003436,87369.0,87352.0,0.17307036]
[1769390134481,0.003436,87369.0,87353.0,0.2218]
[1769390134482,0.01144583,87368.0,87353.0,0.2218]
[1769390134710,0.003436,87369.0,87353.0,0.2332478]